Cogmind - Beta 13 @@@ ROGUE MODE // 2024.04.18 @ 22:18:39 Player: albenzo Result: Destroyed by as-49787 with Assembled F-torch Performance ------------- Evolutions (2) 1000 Regions Visited (6) 1200 Robots Destroyed (50) 250 Value Destroyed (1055) 1055 Prototype IDs (23) 460 Alien Tech Used (0) 0 Bonus (499) 499 TOTAL SCORE: 4464 Bonus ------- Follower Combat Kills 42 Entered Garrisons 200 Aligned with FarCom 300 Friendly Fire -43 Cogmind --------- Core Integrity 0/550 Matter 229/300 Energy 100/100 System Corruption 11% Temperature Cool (20) Movement Core (700) Ox13 Location -8/Garrison Parts ------- > --- POWER (1) -------- (None) > --- PROPULSION (4) --- (None) > --- UTILITY (4) ------ High-capacity Storage Unit > --- WEAPON (2) ------- (None) > --- INVENTORY (20) --- Improved Ion Engine Light Treads Light Treads Cesium-ion Thruster Cesium-ion Thruster Improved Heat Sink Small Storage Unit Medium Storage Unit Compact Battery (200) Compact Battery (200) Experimental Sensor Array ECM Suite Reaction Control System Light Armor Plating Hacking Suite AWS/Gauss Peak State ------------ > --- POWER ------------ Improved Ion Engine > --- PROPULSION ------- Light Treads Light Treads Light Treads Light Treads > --- UTILITY ---------- High-capacity Storage Unit Improved Terrain Scanner Medium Armor Plating Shield Generator > --- WEAPON ----------- AWS/Gauss > --- INVENTORY -------- Ion Engine Compact Wheel Armored Wheel Cesium-ion Thruster Cesium-ion Thruster Improved Heat Sink Small Storage Unit Medium Storage Unit Experimental Sensor Array ECM Suite Reaction Control System Hacking Suite Hacking Suite Beam Rifle Beam Rifle Grenade Launcher Grenade Launcher Datajack [Rating: 34] Favorites ----------- Power Light Ion Engine Engine Light Ion Engine Power Core Light Nuclear Core Propulsion Light Treads Treads Light Treads Wheel Compact Wheel Utility High-capacity Storage Unit Device Seismic Detector Storage High-capacity Storage Unit Hackware Hacking Suite Protection Medium Armor Plating Weapon Beam Rifle Energy Gun Beam Rifle Ballistic Gun AWS/Gauss Launcher Grenade Launcher Build | -11 -10 -10 -10 -9 -8 -8 ------- Run | Yrd Mat Min Exi Min Mat Gar Slots Evolved 4 | . . . . . 4 . Power . | . . . . . . . Propulsion 2 | . . . . . 2 . Utility 2 | . . . . . 2 . Weapon . | . . . . . . . Parts Attached 52 | 6 20 6 1 3 8 8 Power 9 | 1 4 3 . 1 . . Engine 8 | 1 4 2 . 1 . . Core 1 | . . 1 . . . . Reactor . | . . . . . . . Propulsion 21 | 2 7 1 . 1 6 4 Treads 19 | 2 7 . . . 6 4 Leg . | . . . . . . . Wheel 2 | . . 1 . 1 . . Hover . | . . . . . . . Flight . | . . . . . . . Utility 11 | 2 1 2 . 1 2 3 Device 6 | 1 . 2 . 1 1 1 Storage 2 | 1 1 . . . . . Processor . | . . . . . . . Hackware 1 | . . . . . . 1 Protection 2 | . . . . . 1 1 Artifact . | . . . . . . . Weapon 11 | 1 8 . 1 . . 1 Energy Gun 8 | . 8 . . . . . Energy Cannon . | . . . . . . . Ballistic Gun 2 | 1 . . 1 . . . Ballistic Cannon . | . . . . . . . Launcher 1 | . . . . . . 1 Special Weapon . | . . . . . . . Impact Weapon . | . . . . . . . Slashing Weapon . | . . . . . . . Piercing Weapon . | . . . . . . . Special Melee Weapon . | . . . . . . . Unidentified Prototypes . | . . . . . . . Parts Lost 16 | . 2 2 . . . 12 Power 3 | . 1 1 . . . 1 Propulsion 8 | . 1 1 . . . 6 Utility 4 | . . . . . . 4 Weapon 1 | . . . . . . 1 Highest Loss Streak 11 | . 2 1 . . . 11 To Critical Strikes . | . . . . . . . Average Slot Usage (%) 92 | . 97 95 93 85 80 84 Engine 9 | . 13 9 . 4 9 8 Core 3 | . . 4 14 9 . . Treads 20 | . 26 14 14 2 27 33 Wheel 6 | . . 9 14 25 3 . Device 13 | . 14 14 14 14 15 9 Storage 13 | . 14 14 14 14 9 9 Protection 1 | . . . . . 6 8 Energy Gun 18 | . 27 28 15 . . . Ballistic Gun 3 | . . . 6 14 9 7 Naked Turns . | . . . . . . . Heaviest Build 67 | 11 50 52 56 58 67 67 Greatest Support 80 | 40 40 20 16 28 80 80 Greatest Overweight (x) 16 | . 16 3 3 3 2 13 Average Overweight (x) 1 | . . 2 3 1 . . Largest Inventory Capacity 20 | 8 20 20 20 20 20 20 Average Capacity 18 | 7 18 20 20 20 20 20 Most Carried 20 | 8 20 20 20 20 20 20 Average Carried 18 | 6 17 19 20 19 17 19 Final Capacity 20 | 8 20 20 20 20 20 20 Final Carried 20 | 8 20 20 20 20 18 17 Class Distribution -------------------- 77% | Mutant 9% | Skirmisher 9% | Scavenger-Mutant 3% | Scavenger-Skirmisher Dominant Class ---------------- Mutant | -10/Materials Mutant | -10/Mines Mutant | -10/Exiles Skirmisher | -9/Mines Scavenger-Skirmisher | -8/Materials Scavenger-Mutant | -8/Garrison Resources | -11 -10 -10 -10 -9 -8 -8 ----------- Run | Yrd Mat Min Exi Min Mat Gar Matter Collected 860 | 332 206 55 . 40 80 147 Remotely . | . . . . . . . Salvage Created 1723 | 199 411 283 . 205 328 297 Parts 110 | 21 31 15 . 13 13 17 Haulers Intercepted 2 | . 2 . . . . . Recyclers Shooed 4 | . 2 2 . . . . Parts Field Recycled . | . . . . . . . Retrieved Matter . | . . . . . . . Parts Self-Destructed . | . . . . . . . Prevented . | . . . . . . . Kills | -11 -10 -10 -10 -9 -8 -8 ------- Run | Yrd Mat Min Exi Min Mat Gar Combat Hostiles Destroyed 55 | . 12 8 . 5 6 24 Guns 42 | . 12 8 . 5 6 11 AOE 13 | . . . . . . 13 Classes Destroyed 11 | 2 5 . . 1 2 1 Builder 1 | . 1 . . . . . Tunneler 6 | 6 . . . . . . Hauler 2 | . 2 . . . . . Recycler 3 | 1 . 2 . . . . Operator 1 | . . . . . 1 . Watcher 2 | . 2 . . . . . Swarmer 17 | . 9 6 . 1 . 1 Grunt 12 | . 3 2 . 3 4 . Duelist 1 | . . . . . 1 . Sentry 5 | . . . . 1 1 3 Assembled 20 | . . . . . . 20 Best Kill Streak 20 | 3 4 3 . 3 6 20 Combat Bots Only 20 | . 3 3 . 3 6 20 Max Kills in Single Turn 2 | 1 2 1 . 1 2 2 Gunslinging . | . . . . . . . Exploded 2 | . . . . . . 2 Melee . | . . . . . . . Uniques/NPCs Destroyed . | . . . . . . . Combat | -11 -10 -10 -10 -9 -8 -8 -------- Run | Yrd Mat Min Exi Min Mat Gar Hostile Shots Fired 263 | . 69 25 . 6 16 147 Missed 55 | . 11 4 . 2 5 33 Damage Taken 2803 | . 508 209 . 58 130 1898 Core 694 | . 99 34 . . 12 549 Absorbed by Shields 281 | . . . . . 50 231 Core Remaining (%) 73 | 100 . . . 46 . . Volleys Fired 114 | 26 47 21 . . . 20 Largest 2 | 1 2 2 . . . 1 Hottest 112 | 20 112 112 . . . 30 Shots Fired 259 | 26 94 42 . 11 31 55 Gun 239 | 26 94 42 . 11 31 35 Cannon . | . . . . . . . Launcher 20 | . . . . . . 20 Special . | . . . . . . . Kinetic 103 | 26 . . . 11 31 35 Thermal 136 | . 94 42 . . . . Explosive 20 | . . . . . . 20 Electromagnetic . | . . . . . . . Robot Hit Streak 34 | 4 11 14 . 9 16 34 Robot Miss Streak 5 | 2 3 5 . 2 1 4 Penetration Max . | . . . . . . . Secondary Targets 3 | . 1 2 . . . . Max Gunslinging Chain 1 | . 1 1 . . . . Autonomous 78 | . . . . 11 31 36 Shots Hit Robots 176 | 16 61 26 . 8 28 37 Core Hits 95 | 7 24 12 . 6 10 36 Critical Kills 1 | . . . . . . 1 Critical Parts Destroyed . | . . . . . . . Critical Strikes 9 | . 5 3 . . . 1 Burn 8 | . 5 3 . . . . Destroy 1 | . . . . . . 1 Melee Attacks . | . . . . . . . Impact . | . . . . . . . Slashing . | . . . . . . . Piercing . | . . . . . . . Sneak Attacks . | . . . . . . . Combat Hostiles . | . . . . . . . Follow-up Attacks . | . . . . . . . Damage Inflicted 4343 | 233 793 349 . 271 913 1784 Guns 3363 | 233 793 349 . 271 913 804 Cannons . | . . . . . . . Explosions 970 | . . . . . . 970 Melee . | . . . . . . . Ramming 10 | . . . . . . 10 Kinetic 2221 | 233 . . . 271 913 804 Thermal 1142 | . 793 349 . . . . Explosive 970 | . . . . . . 970 Electromagnetic . | . . . . . . . Impact . | . . . . . . . Slashing . | . . . . . . . Piercing . | . . . . . . . Highest Corruption 11 | . . . . . . 11 Average Corruption 9 | . . . . . . 9 Corruption Purged . | . . . . . . . Corruption Blocked . | . . . . . . . Effects 2 | . . . . . . 2 Message Errors 1 | . . . . . . 1 Data Loss (minor) 1 | . . . . . . 1 Overload Shots . | . . . . . . . Overflow Damage 1 | . . . . . . 1 Projectiles . | . . . . . . . Explosions 1 | . . . . . . 1 Melee . | . . . . . . . Knockbacks . | . . . . . . . Impact . | . . . . . . . Kinetic . | . . . . . . . Secondary . | . . . . . . . Self-Inflicted Damage 171 | . . . . . . 171 Shots 5 | . . . . . . 5 Rammed 2 | . 1 . . . . 1 Targets Rammed 2 | . 1 . . . . 1 Kicked . | . . . . . . . Crushed . | . . . . . . . Highest Temperature 270 | . 270 255 . . . 18 Average Temperature 83 | . 86 74 . . . 18 Received Heat Transfer 518 | . 102 60 . 18 54 284 Siege Activations . | . . . . . . . Robots Corrupted . | . . . . . . . Combat Hostiles . | . . . . . . . Parts Fried . | . . . . . . . Impact Corruptions . | . . . . . . . Robots Melted . | . . . . . . . Combat Hostiles . | . . . . . . . Parts Melted 10 | . 4 6 . . . . Heat Transferred 3586 | . 2476 1110 . . . . Parts Sabotaged . | . . . . . . . Parts Stolen . | . . . . . . . Parts Stripped . | . . . . . . . Power Chain Reactions . | . . . . . . . Alert | -11 -10 -10 -10 -9 -8 -8 ------- Run | Yrd Mat Min Exi Min Mat Gar Peak Influence 349 | 35 166 118 . 120 174 349 Initial 113 | . 22 13 . . 8 113 Average 67 | 16 56 39 . 39 35 240 Maximum Alert Level 1 | . . . . . . 1 Low Security (%) 91 | 100 100 100 . 100 100 23 Level 1 8 | . . . . . . 76 Level 2 . | . . . . . . . Level 3 . | . . . . . . . Level 4 . | . . . . . . . Level 5 . | . . . . . . . High Security . | . . . . . . . Max Security . | . . . . . . . Squads Dispatched 5 | . 2 1 . . 2 . Investigation 3 | . 2 1 . . . . Extermination . | . . . . . . . Reinforcement 1 | . . . . . 1 . Assault . | . . . . . . . Garrison 1 | . . . . . 1 . Intercept . | . . . . . . . Searches Triggered . | . . . . . . . Construction Impeded . | . . . . . . . Haulers Reinforced . | . . . . . . . Active Scanning Responses . | . . . . . . . Cargo Convoy Interrupts . | . . . . . . . Stealth | -11 -10 -10 -10 -9 -8 -8 --------- Run | Yrd Mat Min Exi Min Mat Gar Distress Signals 1 | . 1 . . . . . Communications Jammed . | . . . . . . . Distress Signals . | . . . . . . . Times Spotted 73 | . 19 8 . 7 7 32 Peak Tracking Total 12 | . 4 3 . 3 5 12 Tactical Retreats 1 | . 1 . . . . . Traps | -11 -10 -10 -10 -9 -8 -8 ------- Run | Yrd Mat Min Exi Min Mat Gar Traps Triggered 7 | . 5 . . . 2 . Indirectly . | . . . . . . . Trap Hack Attempts . | . . . . . . . Triggered . | . . . . . . . Disarmed . | . . . . . . . Reprogrammed . | . . . . . . . Reused . | . . . . . . . Traps Extracted . | . . . . . . . Installed 5 | . . 5 . . . . Triggered 1 | . . . . 1 . . Machines | -11 -10 -10 -10 -9 -8 -8 ---------- Run | Yrd Mat Min Exi Min Mat Gar Machines Disabled 1 | . . . . 1 . . Max in Single Turn 1 | . . . . 1 . . Machines Repaired . | . . . . . . . Machines Dismantled . | . . . . . . . Machines Sabotaged . | . . . . . . . Overloaded Fab Kills . | . . . . . . . Hacking | -11 -10 -10 -10 -9 -8 -8 --------- Run | Yrd Mat Min Exi Min Mat Gar Machines Accessed 15 | . 9 1 2 . 2 1 Terminals 10 | . 8 . . . 1 1 Fabricators . | . . . . . . . Repair Stations . | . . . . . . . Recycling Units 1 | . 1 . . . . . Scanalyzers . | . . . . . . . Garrison Access 1 | . . . . . 1 . Total Hacks 33 | . 22 1 5 . 3 2 Successful 19 | . 10 1 5 . 2 1 Failed 14 | . 12 . . . 1 1 Catastrophic 3 | . 3 . . . . . Database Lockouts . | . . . . . . . Manual 15 | . 12 . 1 . 2 . Terminals 24 | . 20 . . . 2 2 Fabricators . | . . . . . . . Repair Stations . | . . . . . . . Recycling Units 2 | . 2 . . . . . Scanalyzers . | . . . . . . . Garrison Access 1 | . . . . . 1 . Terminal Hacks 11 | . 4 1 5 . . 1 Record 4 | . . . 4 . . . Open Door 2 | . . 1 . . . 1 Alert Level 1 | . 1 . . . . . Locate Traps 1 | . 1 . . . . . Transport Status 1 | . 1 . . . . . Hauler Manifests 1 | . 1 . . . . . Derelict Proto ID Bank 1 | . . . 1 . . . Fabricator Hacks . | . . . . . . . Repair Station Hacks . | . . . . . . . Recycling Unit Hacks 2 | . 2 . . . . . Retrieve Components 2 | . 2 . . . . . Scanalyzer . | . . . . . . . Garrison Access Hacks 1 | . . . . . 1 . Unlock Access 1 | . . . . . 1 . Unauthorized Hacks 5 | . 4 . . . 1 . Terminals 5 | . 4 . . . 1 . Botnet 4 | . 3 . . . 1 . Operators 1 | . 1 . . . . . Fabricators . | . . . . . . . Repair Stations . | . . . . . . . Recycling Units . | . . . . . . . Scanalyzers . | . . . . . . . Garrison Access . | . . . . . . . Data Cores Recovered 1 | . . . . . 1 . Used . | . . . . . . . Hacking Detections 9 | . 7 . . . 1 1 Full Trace Events 1 | . 1 . . . . . Feedback Events . | . . . . . . . Feedback Blocked . | . . . . . . . Robot Schematics Acquired . | . . . . . . . Robots Built . | . . . . . . . Authchips . | . . . . . . . Time . | . . . . . . . Total Robot Build Rating . | . . . . . . . Part Schematics Acquired . | . . . . . . . Parts Built . | . . . . . . . Authchips . | . . . . . . . Time . | . . . . . . . Total Part Build Rating . | . . . . . . . Parts Repaired . | . . . . . . . Time . | . . . . . . . Parts Recycled . | . . . . . . . Recycled Matter . | . . . . . . . Retrieved Matter . | . . . . . . . Retrieved Components 8 | . 8 . . . . . Parts Scanalyzed . | . . . . . . . Part Schematics Acquired . | . . . . . . . Parts Damaged . | . . . . . . . Bothacking | -11 -10 -10 -10 -9 -8 -8 ------------ Run | Yrd Mat Min Exi Min Mat Gar Used RIF Installer . | . . . . . . . Robots Hacked . | . . . . . . . Non-combat . | . . . . . . . Combat . | . . . . . . . Robot Hacks Applied . | . . . . . . . Relay Couplers Released . | . . . . . . . Fabnet Peak Effective % . | . . . . . . . Robots Rewired . | . . . . . . . Allies Hacked . | . . . . . . . Hacks Repelled . | . . . . . . . Allies | -11 -10 -10 -10 -9 -8 -8 -------- Run | Yrd Mat Min Exi Min Mat Gar Total Allies 3 | . . . . 1 . 2 Largest Group 2 | . . . . 1 . 2 Highest-Rated Group 56 | . . . . 31 . 56 Highest-Rated Ally 31 | . . . . 31 . 31 Total Orders . | . . . . . . . Ally Attacks 13 | . . . . 3 . 10 Total Damage 198 | . . . . 63 . 135 Kills 3 | . . . . . . 3 Allies Corrupted . | . . . . . . . Allies Melted . | . . . . . . . Intel | -11 -10 -10 -10 -9 -8 -8 ------- Run | Yrd Mat Min Exi Min Mat Gar Robot Analysis Total . | . . . . . . . Derelict Logs Recovered 1 | . . 1 . . . . Drone Launches . | . . . . . . . Drone Recoveries . | . . . . . . . Exploration | -11 -10 -10 -10 -9 -8 -8 ------------- Run | Yrd Mat Min Exi Min Mat Gar Turns Passed 4970 | 293 1797 1209 323 616 189 543 Spaces Moved 2497 | 145 674 638 222 460 107 251 Core 11 | 7 1 . . . . 3 Treads 1235 | 138 673 99 . . 77 248 Legs . | . . . . . . . Wheels 1251 | . . 539 222 460 30 . Hover . | . . . . . . . Flight . | . . . . . . . Fastest Speed 50 | 50 160 130 145 110 125 160 Average Speed 174 | 154 234 172 145 121 150 166 Slowest Speed 850 | 160 850 320 145 145 160 700 Overloaded Moves . | . . . . . . . Propulsion Burnouts . | . . . . . . . Robots Hopped . | . . . . . . . Cave-ins Triggered . | . . . . . . . Exploration Rate (%) 52 | 6 95 98 61 60 14 34 Regions Visited 6 Branch Regions 3 Pre-discovered Areas 1 | . . . 1 . . . Known Exits Taken 1 | . . . . . 1 . Unknown Exits Taken 5 | 1 1 1 1 1 . . Scrap Searched 4 | . . 1 . 3 . . Spaces Dug . | . . . . . . . Terrain Destroyed 51 | . . . . 5 16 30 Melee . | . . . . . . . Projectile 26 | . . . . 5 16 5 AOE 25 | . . . . . . 25 Terrain Rammed . | . . . . . . . Walls Destroyed . | . . . . . . . Machines Disabled . | . . . . . . . Actions | -11 -10 -10 -10 -9 -8 -8 --------- Run | Yrd Mat Min Exi Min Mat Gar Total 2947 | 185 800 708 224 529 135 366 Wait 165 | 1 21 26 . 35 17 65 Move 2491 | 144 673 637 221 459 106 251 Hop . | . . . . . . . Pick Up 64 | 8 22 6 . 15 3 10 Fast Attach 25 | 6 13 1 1 2 2 . Attach 10 | . 1 1 . . 4 4 Detach 1 | . 1 . . . . . Swap 17 | . 6 4 . 1 2 4 Drop 53 | . 15 7 2 17 1 11 Fire 114 | 26 47 21 . . . 20 Melee . | . . . . . . . Ram . | . . . . . . . Kick . | . . . . . . . Crush 2 | . 1 . . . . 1 Escape Stasis . | . . . . . . . Rewire . | . . . . . . . Trap 5 | . . 5 . . . . Miscellaneous . | . . . . . . . Route ------- -11/Scrapyard -10/Materials (discovered 5 exits: [*Mat x3] / *Min x2) -10/Mines (discovered 3 exits: [*Mat x2] / *Exi) -10/Exiles -9/Mines -8/Materials -8/Garrison History --------- Turn | Location | Event 40 | -11/Scrapyard | Discovered new exit (range 16) 294 | -11/Scrapyard | Entered Materials 339 | -10/Materials | Build established: Mutant 379 | -10/Materials | Discovered new exit (range 16) 477 | -10/Materials | Discovered new exit (range 10) 862 | -10/Materials | Discovered new exit (range 12) 1442 | -10/Materials | Discovered new exit (range 15) 1814 | -10/Materials | Discovered new exit (range 15) 2091 | -10/Materials | Entered Mines 2344 | -10/Mines | Learned Materials stockpile data 2591 | -10/Mines | Discovered new exit (range 11) 2607 | -10/Mines | Core integrity fell below 50% 2967 | -10/Mines | Discovered new exit (range 4) 3044 | -10/Mines | Deemed a non-threat by the Exiles lab entrance 3046 | -10/Mines | Discovered new exit (range 5) 3111 | -10/Mines | Met a Derelict shopkeep closing up shop 3197 | -10/Mines | Found a hidden stash of uninstalled traps 3300 | -10/Mines | Entered Exiles 3335 | -10/Exiles | Met 8R-AWN 3360 | -10/Exiles | Met EX-HEX 3399 | -10/Exiles | Met EX-BIN 3419 | -10/Exiles | Aligned with FarCom system 3421 | -10/Exiles | Given EX-Vault access code 3469 | -10/Exiles | Opened EX-Vault 3484 | -10/Exiles | Found AWS/Gauss 3516 | -10/Exiles | Warned to stay clear of 0b10 Research branches 3530 | -10/Exiles | Exiles lab attacked by MAIN.C 3568 | -10/Exiles | Learned location of Zion (-7) 3612 | -10/Exiles | Discovered new exit (range 10) 3623 | -10/Exiles | Left Exiles lab with AWS/Gauss 3623 | -10/Exiles | Entered Mines 3641 | -9/Mines | Met a Derelict bent on vengeance 3650 | -9/Mines | Found a damaged Exp. Sensor Array with a note attached 3653 | -9/Mines | Found Prototype Device 3731 | -9/Mines | Received a Mining Laser from a helpful Derelict 4004 | -9/Mines | Discovered new exit (range 11) 4036 | -9/Mines | Joined a pair of Derelicts in attacking an 0b10 outpost 4103 | -9/Mines | Build established: Skirmisher 4167 | -9/Mines | Assembled infested the area 4172 | -9/Mines | Assisted by a Guerilla fighting off Assembled 4239 | -9/Mines | Entered Materials 4239 | -8/Materials | Evolved 4 slots: Propulsion x2, Utility x2 4392 | -8/Materials | Garrison activated, responded to threat 4426 | -8/Materials | Identified exit to Garrison 4428 | -8/Materials | Entered Garrison 4474 | -8/Garrison | Rescued a captive Derelict 4475 | -8/Garrison | Rescued a captive Derelict 4608 | -8/Garrison | Triggered checkpoint 4741 | -8/Garrison | Build established: Scavenger-Mutant 4747 | -8/Garrison | Assembled breached garrison interior 4935 | -8/Garrison | Destroyed 20 combat bots 4946 | -8/Garrison | System corruption reached 10% 4956 | -8/Garrison | Core integrity fell below 50% 4963 | -8/Garrison | Core integrity fell below 20% 4971 | -8/Garrison | Destroyed by as-49787 with Assembled F-torch Last Messages --------------- 04927_ Lgt. Treads destroyed. 04934_ Acquired 44 matter. 04935_ Hacking Suite destroyed. 04935_ System corrupted by crushing effect (+3). 04938_ Shield Generator destroyed. 04938_ Lgt. Treads destroyed. 04939_ The unstable cave ceiling collapses. 04939_ Imp. Ion Engine destroyed. 04939_ System corrupted by crushing effect (+4). 04942_ Lgt. Armor Plating destroyed. 04944_ The unstable cave ceiling collapses. 04945_ Lgt. Treads destroyed. 04945_ System corrupted by crushing effect (+4). 04946_ Lgt. Treads destroyed. 04950_ System corrupted: Component data lost. 04951_ Knocked back. 04955_ Acquired 31 matter. 04962_ Knocked back. 04967_ as-99193 destroyed. 04969_ 4=UTK2TTATEHU2P E&11#YNWPE/ > Map ----- +----------------------------------------------------+ | ?????????????????????????????????????????????????? | | ?????????????????????????????????????????????????? | | ?????????????????????????????????????????????????? | | ?????????????????????????????????????????????????? | | ?????????????????????????????????????????????????? | | ?????????????????????????????????????????????????? | | ?????????????????????????????????????????????????? | | ?????????????????????????????????????????????????? | | ?????????????????????????????????????????????????? | | ?????????????????????????????????????????????????? | | ?????????????????????????????????????????????????? | | ?????????????????????????????????????????????????? | | ?????????????????????????#???????????????????????? | | ????????????????????????? ???????????????????????? | | ????????????????????????? #??????????????????????? | | ????????????????????????? ??????????????????????? | | ????????????????????????# #??????????????????????? | | ???????????????????????## ###????????????????????? | | ???????????????????????# ????????????????????? | | ?????????Y?????????????# ?????????????????????? | | ???????????????????????# ?????????????????????? | | ???????????????????????# %#?????????????????????? | | ???????????????????????# #?????????????????????? | | ???????????????????????# #?????????????????????? | | ???????????????????????# %#?????????????????????? | | ???????????????????????# @ #?????????????????????? | | ?????????????????####### % #?????????????????????? | | ?????????????????# ##]aa#?????????????????????? | | ????????????###### %*##a%*##????????????????????? | | ????######### %! =*%=a *T#????????????????????? | | ???? = =[[%=##????????????????????? | | ????? % =%=[#?????????????????????? | | ???????????## # #%!%#?????????????????????? | | ??????????### # %=###???????????????????? | | ??????????# * #???????????????????? | | ??????????# #???????????????????? | | ??????????# #???????????????????? | | ??????????# #???????????????????? | | ???????###### # # ###???????????????????? | | ######## ## #?????????????????????? | | #?????????????????????? | | [ #?????????????????????? | | %* ! #?????????????????????? | | #### ### ## ### ## ##?????????????????????? | | #??# #?## ## #?# #? #??????????????????????? | | #??# #??#### #?######? #??????????????????????? | | #??# #?????#=### #??????#??????????????????????? | | #??# #?????#!** #?????????????????????????????? | | #### #?????#%#####?????????????????????????????? | | #?????#=#?????????????????????????????????? | +----------------------------------------------------+ Best States ------------- Heat Dissipation 35 Energy Generation 14 Energy Capacity 265 Matter Stores 300 Matter Capacity 300 Sight Range 16 Terrain Scan Range 16 Terrain Scan Density 10 Armor Coverage 225 Evasion (%) 40 Recoil Reduction 4 Offensive Hacking 10 Item Schematics ----------------- None Robot Schematics ------------------ None Fabricated ------------ Nothing Alien Tech Used ----------------- None Achievements -------------- None Challenges ------------ None Game ------ Seed IonDefenseFilter Manual? 0 Play Time 00:36:57 Cumulative 117.5 hours Start 2024.04.18 @ 21:40:32 End 2024.04.18 @ 22:18:39 Sessions 1 Manual Loads 0 Difficulty Rogue Special Mode None Game No. 100 Rogue 100 Adventurer 0 Explorer 0 Win Type - Total 7 Types 6/0/1/0/0/0/0/0/0 Lore% 64 Gallery% 64 Achievement% 57 Wizard Run 0 Options --------- Layout 0 ASCII 0 Keyboard 1 Movement Vi Keybinds 0 Fullscreen 1 Font 24/Smallcaps Map View 76x50 Zoom Use 0% Tactical HUD 1 Map Filters NONE Filters NONE Steam 1 RUN: 93ce0229-1085-44ed-b264-5ec8d1499576